[Event "FIDE Womens World Cup 2021"]
[Site "Sochi"]
[Date "2021.07.12"]
[Round "1.8"]
[White "Mezioud, Amina"]
[Black "Osmak, Iulija"]
[Result "0-1"]
[ECO "B22"]
[WhiteElo "2071"]
[BlackElo "2418"]
[Annotator "NA"]
[PlyCount "100"]
[EventDate "2021.07.12"]
[EventType "k.o."]
[EventCountry "RUS"]
[SourceTitle "playchess.com"]
[Source "ChessBase"]
[SourceQuality "1"]
[TimeControl "40/5400+30:1800+30"]

1. e4 {[%emt 0:00:05]} c5 {[%emt 0:00:07]} 2. c3 {[%emt 0:01:57]} Nf6 {[%emt 0:00:32]} 3. e5 {[%emt 0:00:15]} Nd5 {[%emt 0:00:04]} 4. d4 {[%emt 0:00:05]} cxd4 {[%emt 0:00:06]} 5. cxd4 {[%emt 0:00:06]} d6 {[%emt 0:00:19]} 6. Nf3 {[%emt 0:01:13]} e6 {[%emt 0:01:12]} 7. Nc3 {[%emt 0:03:44]} Nxc3 {[%emt 0:01:59]} 8. bxc3 {[%emt 0:00:08]} Nc6 {[%emt 0:02:00]} 9. exd6 {[%emt 0:02:47]} Bxd6 {[%emt 0:02:59]} 10. Bd3 {[%emt 0:00:07]} h6 {[%emt 0:04:08]} 11. O-O {[%emt 0:00:28]} O-O {[%emt 0:03:33]} 12. Bc2 {[%emt 0:06:59]} Ne7 {[%emt 0:08:50]} 13. Qd3 {[%emt 0:02:40]} Ng6 {[%emt 0:00:22]} 14. Re1 {[%emt 0:02:11]} Bd7 {[%emt 0:01:26]} 15. a4 {[%emt 0:07:41]} Rc8 {[%emt 0:03:58]} 16. Ne5 {[%emt 0:03:42]} Bxe5 {[%emt 0:01:29]} 17. Rxe5 {[%emt 0:02:09]} Bc6 {[%emt 0:07:37]} 18. c4 {[%emt 0:14:15]} Qh4 $16 {[%emt 0:12:51]} (18... Re8 $11) 19. d5 {[%emt 0:24:12]} Bxd5 {[%emt 0:11:47]} 20. cxd5 {[%emt 0:05:19]} Rxc2 {[%emt 0:00:07]} 21. Qxc2 {[%emt 0:00:05]} Nxe5 {[%emt 0:00:06]} 22. Bb2 {[%emt 0:14:09]} Qc4 {[%emt 0:05:40]} 23. Qd2 {[%emt 0:02:02]} Nd3 {[%emt 0:01:57]} 24. Ba3 {[%emt 0:00:21]} Rd8 {[%emt 0:00:25]} 25. d6 {[%emt 0:00:17]} Nf4 {[%emt 0:05:27]} 26. a5 {[%emt 0:05:15]} Qd4 {[%emt 0:10:06]} 27. Qxd4 {[%emt 0:00:43]} Ne2+ {[%emt 0:00:03]} 28. Kf1 {[%emt 0:00:03]} Nxd4 {[%emt 0:00:04]} 29. Rd1 {[%emt 0:01:13]} Nb5 {[%emt 0:01:03]} 30. Bc5 {[%emt 0:00:21]} Rd7 {[%emt 0:01:50]} 31. Bb4 {[%emt 0:00:01]} f6 {[%emt 0:00:52]} 32. f4 {[%emt 0:00:57]} Kf7 {[%emt 0:00:37]} 33. Kf2 {[%emt 0:00:08]} a6 {[%emt 0:03:12]} 34. Ke3 {[%emt 0:00:07]} Ke8 {[%emt 0:03:57]} 35. Ke4 {[%emt 0:00:37]} Rd8 {[%emt 0:00:20]} 36. f5 {[%emt 0:01:24]} Kd7 {[%emt 0:00:26]} 37. g4 {[%emt 0:00:38]} Rc8 {[%emt 0:04:23]} 38. fxe6+ {[%emt 0:00:05]} Kxe6 {[%emt 0:00:03]} 39. Kf3 {[%emt 0:00:59]} Kd7 {[%emt 0:00:47]} 40. h4 {[%emt 0:00:25]} Rc4 {[%emt 0:00:32]} 41. Rb1 {[%emt 0:30:34]} g5 {[%emt 0:32:02]} 42. hxg5 {[%emt 0:00:09]} hxg5 {[%emt 0:00:18]} 43. Rb2 {[%emt 0:00:46]} Rd4 {[%emt 0:01:16]} 44. Rb1 {[%emt 0:00:15]} Rd5 {[%emt 0:00:30]} 45. Rb2 {[%emt 0:00:00]} Nxd6 {[%emt 0:00:00]} 46. Bxd6 {[%emt 0:00:00]} Kxd6 {[%emt 0:00:00]} 47. Rxb7 {[%emt 0:00:00]} Rxa5 {[%emt 0:00:00]} 48. Ke4 {[%emt 0:00:00]} Ra4+ {[%emt 0:00:00]} 49. Kf5 {[%emt 0:00:00]} Rf4+ {[%emt 0:00:00]} 50. Kg6 {[%emt 0:00:00]} a5 {[%emt 0:00:00]} 0-1

[Event "FIDE Womens World Cup 2021"]
[Site "Sochi"]
[Date "2021.07.12"]
[Round "1.9"]
[White "Cyfka, Karina"]
[Black "Demchenko, Svitlana"]
[Result "1/2-1/2"]
[ECO "E11"]
[WhiteElo "2417"]
[BlackElo "2089"]
[Annotator "NA"]
[PlyCount "83"]
[EventDate "2021.07.12"]
[EventType "k.o."]
[EventCountry "RUS"]
[SourceTitle "playchess.com"]
[Source "ChessBase"]
[SourceQuality "1"]
[TimeControl "40/5400+30:1800+30"]

1. d4 {[%emt 0:00:05]} Nf6 {[%emt 0:00:14]} 2. c4 {[%emt 0:00:16]} e6 {[%emt 0:00:12]} 3. Nf3 {[%emt 0:00:13]} Bb4+ {[%emt 0:00:15]} 4. Nbd2 {[%emt 0:00:47]} b6 {[%emt 0:01:30]} 5. g3 {[%emt 0:01:32]} Bb7 {[%emt 0:00:29]} 6. Bg2 {[%emt 0:00:12]} O-O {[%emt 0:05:50]} 7. O-O {[%emt 0:00:11]} d5 {[%emt 0:02:27]} 8. cxd5 {[%emt 0:08:34]} exd5 {[%emt 0:03:08]} 9. Ne5 {[%emt 0:01:08]} Nbd7 {[%emt 0:01:50]} 10. Ndf3 {[%emt 0:04:29]} Bd6 {[%emt 0:03:49]} 11. Bg5 {[%emt 0:21:11]} Qe8 {[%emt 0:09:54]} 12. Nxd7 {[%emt 0:00:55]} Nxd7 $11 {[%emt 0:00:17]} 13. Rc1 {[%emt 0:04:27]} Qe6 {[%emt 0:10:11]} 14. Qd3 {[%emt 0:07:35]} Rfe8 {[%emt 0:11:55]} 15. Rfe1 {[%emt 0:02:52]} c5 {[%emt 0:05:57]} 16. Bf4 {[%emt 0:07:32]} h6 {[%emt 0:07:28]} 17. Bxd6 {[%emt 0:04:36]} Qxd6 {[%emt 0:00:20]} 18. dxc5 {[%emt 0:04:10]} bxc5 {[%emt 0:01:50]} 19. Nd2 {[%emt 0:01:38]} Rab8 {[%emt 0:06:06]} 20. b3 {[%emt 0:08:11]} Ne5 {[%emt 0:10:04]} 21. Qc2 {[%emt 0:00:45]} Ba6 {[%emt 0:03:36]} 22. h3 {[%emt 0:10:01]} Rbc8 {[%emt 0:05:06]} 23. f4 {[%emt 0:02:26]} Nd7 {[%emt 0:00:13]} 24. e4 {[%emt 0:00:35]} Qg6 {[%emt 0:01:54]} 25. Kh2 {[%emt 0:00:57]} d4 {[%emt 0:01:03]} 26. e5 {[%emt 0:01:32]} Bd3 {[%emt 0:04:58]} 27. Qb2 {[%emt 0:02:32]} f6 {[%emt 0:00:21]} 28. e6 {[%emt 0:00:57]} Nb6 {[%emt 0:00:11]} 29. Qa3 {[%emt 0:01:34]} Qf5 {[%emt 0:01:14]} 30. Nf3 {[%emt 0:01:06]} g5 {[%emt 0:00:46]} 31. fxg5 {[%emt 0:01:18]} hxg5 {[%emt 0:00:30]} 32. e7 {[%emt 0:00:33]} Be4 {[%emt 0:01:22]} 33. Qxa7 {[%emt 0:01:33]} Bxf3 {[%emt 0:00:46]} 34. Qxb6 {[%emt 0:00:13]} Bxg2 {[%emt 0:00:27]} 35. Kxg2 {[%emt 0:00:04]} Qd5+ {[%emt 0:00:27]} 36. Kg1 {[%emt 0:00:50]} Rc6 {[%emt 0:00:01]} 37. Qb5 {[%emt 0:00:44]} Qf3 {[%emt 0:00:50]} 38. Kh2 {[%emt 0:00:32]} Qf2+ {[%emt 0:00:15]} 39. Kh1 {[%emt 0:00:03]} Qf3+ {[%emt 0:00:13]} 40. Kh2 {[%emt 0:00:03]} Qf2+ {[%emt 0:00:15]} 41. Kh1 {[%emt 0:30:01]} Qf3+ {[%emt 0:31:27]} 42. Kh2 {[%emt 0:00:05]} 1/2-1/2

[Event "FIDE Womens World Cup 2021"]
[Site "Sochi"]
[Date "2021.07.12"]
[Round "1.10"]
[White "Varela La Madrid, Tilsia Carolina"]
[Black "Guichard, Pauline"]
[Result "1-0"]
[ECO "C48"]
[WhiteElo "2072"]
[BlackElo "2413"]
[Annotator "NA"]
[PlyCount "151"]
[EventDate "2021.07.12"]
[EventType "k.o."]
[EventCountry "RUS"]
[SourceTitle "playchess.com"]
[Source "ChessBase"]
[SourceQuality "1"]
[TimeControl "40/5400+30:1800+30"]

1. e4 {[%emt 0:00:04]} e5 {[%emt 0:00:05]} 2. Nf3 {[%emt 0:00:05]} Nc6 {[%emt 0:00:05]} 3. Nc3 {[%emt 0:00:07]} Nf6 {[%emt 0:00:53]} 4. Bb5 {[%emt 0:00:21]} Nd4 {[%emt 0:01:47]} 5. O-O {[%emt 0:00:36]} c6 {[%emt 0:05:37]} 6. Bc4 {[%emt 0:11:21]} d5 {[%emt 0:07:47]} 7. exd5 {[%emt 0:02:05]} cxd5 {[%emt 0:00:22] [#]} 8. Nxd4 {[%emt 0:09:30]} (8. Nxd5 $1 $16 Nxd5 9. Nxd4) 8... dxc4 {[%emt 0:00:25]} 9. Nf3 {[%emt 0:01:23]} Bd6 {[%emt 0:07:01]} 10. Qe2 {[%emt 0:01:56]} (10. d4 $14 e4 11. Qe2) 10... Bg4 {[%emt 0:08:24]} 11. Qxc4 {[%emt 0:11:21]} ({White should try} 11. h3 $14 Bxf3 12. Qxf3) 11... Bxf3 {[%emt 0:01:20]} 12. gxf3 {[%emt 0:00:07]} O-O {[%emt 0:00:42]} 13. d3 {[%emt 0:01:57]} Rc8 {[%emt 0:03:36]} 14. Qh4 {[%emt 0:02:37]} Be7 {[%emt 0:01:43]} 15. Bg5 {[%emt 0:01:45]} Rc6 {[%emt 0:05:17]} 16. Kh1 {[%emt 0:06:15]} Nd5 {[%emt 0:06:09]} 17. Bxe7 $15 {[%emt 0:01:23]} Nxe7 {[%emt 0:00:21]} 18. Rg1 {[%emt 0:04:22]} Ng6 {[%emt 0:10:31]} 19. Qg3 {[%emt 0:07:11]} Qh4 {[%emt 0:12:50]} 20. Rae1 {[%emt 0:00:50]} Rd8 {[%emt 0:03:29]} 21. Re4 {[%emt 0:12:46]} Qh6 {[%emt 0:00:07]} 22. Qg5 {[%emt 0:02:01]} Qxg5 {[%emt 0:05:00]} 23. Rxg5 {[%emt 0:00:06]} f6 {[%emt 0:02:56]} 24. Rg1 {[%emt 0:01:01]} Kf7 {[%emt 0:01:54]} 25. Rb4 {[%emt 0:05:26]} b6 {[%emt 0:01:25]} 26. a4 {[%emt 0:00:53]} Rd4 {[%emt 0:01:54]} 27. Rg4 {[%emt 0:00:42]} Rd7 {[%emt 0:03:40]} 28. Rgc4 {[%emt 0:06:09]} Re6 {[%emt 0:00:07]} 29. a5 {[%emt 0:03:54]} bxa5 {[%emt 0:01:49]} 30. Rb5 {[%emt 0:00:20]} Ne7 {[%emt 0:01:58]} 31. Rxa5 {[%emt 0:01:24]} Nc6 {[%emt 0:00:08]} 32. Ra6 {[%emt 0:00:50]} Nd4 {[%emt 0:00:21]} 33. Rxe6 {[%emt 0:00:12]} Kxe6 {[%emt 0:00:10]} 34. Ne4 {[%emt 0:00:21]} Kf7 {[%emt 0:02:55]} 35. Kg2 {[%emt 0:00:23]} Ne2 {[%emt 0:02:12]} 36. b4 {[%emt 0:01:24]} f5 {[%emt 0:00:40]} 37. Ng3 {[%emt 0:02:50]} Nf4+ {[%emt 0:00:11]} 38. Kf1 {[%emt 0:00:17]} Kf6 {[%emt 0:02:25]} 39. Ne2 {[%emt 0:00:39]} Ne6 {[%emt 0:00:34]} 40. f4 {[%emt 0:00:31]} g5 {[%emt 0:00:43]} 41. fxe5+ {[%emt 0:31:40]} Kxe5 {[%emt 0:30:07]} 42. Ng1 {[%emt 0:01:27]} g4 {[%emt 0:00:48]} 43. f3 {[%emt 0:00:43]} h5 {[%emt 0:00:32]} 44. Kf2 Rd6 {[%emt 0:00:00]} 45. Ne2 {[%emt 0:00:00]} Ra6 {[%emt 0:00:00]} 46. f4+ {[%emt 0:00:00]} Kf6 {[%emt 0:00:00]} 47. d4 {[%emt 0:00:00]} Ra3 {[%emt 0:00:00]} 48. d5 {[%emt 0:00:00]} Rf3+ {[%emt 0:00:00]} 49. Kg2 {[%emt 0:00:00]} Re3 {[%emt 0:00:00]} 50. Ng3 {[%emt 0:00:00]} h4 {[%emt 0:00:00]} 51. Rc6 {[%emt 0:00:00]} hxg3 {[%emt 0:00:00]} 52. hxg3 {[%emt 0:00:00]} Kf7 {[%emt 0:00:00]} 53. Rxe6 {[%emt 0:00:00]} Rc3 {[%emt 0:00:00]} 54. Rc6 {[%emt 0:00:00]} Re3 {[%emt 0:00:00]} 55. Kf2 {[%emt 0:00:00]} Rf3+ {[%emt 0:00:18]} 56. Kg2 {[%emt 0:00:00]} Re3 {[%emt 0:00:03]} 57. Rc7+ {[%emt 0:00:00]} Kf6 {[%emt 0:01:49]} 58. d6 {[%emt 0:00:00]} Re2+ {[%emt 0:00:18]} 59. Kf1 {[%emt 0:00:00]} Re3 {[%emt 0:01:08]} 60. Kf2 {[%emt 0:00:00]} Rf3+ {[%emt 0:00:08]} 61. Kg2 {[%emt 0:00:00]} Ke6 {[%emt 0:00:14]} 62. d7 {[%emt 0:00:00]} Ke7 {[%emt 0:00:07]} 63. c4 {[%emt 0:00:00]} Rb3 {[%emt 0:05:06]} 64. c5 {[%emt 0:00:00]} a5 {[%emt 0:00:47]} 65. bxa5 {[%emt 0:00:00]} Kd8 {[%emt 0:00:13]} 66. Ra7 {[%emt 0:00:00]} Rc3 {[%emt 0:01:11]} 67. a6 {[%emt 0:00:00]} Rxc5 {[%emt 0:00:46]} 68. Rb7 {[%emt 0:00:00]} Rc2+ {[%emt 0:00:41]} 69. Kf1 {[%emt 0:00:00]} Rc1+ {[%emt 0:00:18]} 70. Ke2 {[%emt 0:00:00]} Rc2+ {[%emt 0:00:06]} 71. Kd3 {[%emt 0:00:00]} Ra2 {[%emt 0:00:06]} 72. a7 {[%emt 0:00:00]} Ra3+ {[%emt 0:00:06]} 73. Kd4 {[%emt 0:00:00]} Ra4+ {[%emt 0:00:09]} 74. Kc5 {[%emt 0:00:00]} Ra5+ {[%emt 0:00:18]} 75. Kc6 {[%emt 0:00:00]} Ra6+ {[%emt 0:00:21]} 76. Rb6 {[%emt 0:00:00]} 1-0

[Event "FIDE Womens World Cup 2021"]
[Site "Sochi"]
[Date "2021.07.12"]
[Round "1.11"]
[White "Buksa, Nataliya"]
[Black "Latreche, Sabrina"]
[Result "1-0"]
[ECO "C78"]
[WhiteElo "2413"]
[BlackElo "2076"]
[Annotator "NA"]
[PlyCount "95"]
[EventDate "2021.07.12"]
[EventType "k.o."]
[EventCountry "RUS"]
[SourceTitle "playchess.com"]
[Source "ChessBase"]
[SourceQuality "1"]
[TimeControl "40/5400+30:1800+30"]

1. e4 {[%emt 0:00:03]} e5 {[%emt 0:00:07]} 2. Nf3 {[%emt 0:00:05]} Nc6 {[%emt 0:00:16]} 3. Bb5 {[%emt 0:00:05]} a6 {[%emt 0:00:48]} 4. Ba4 {[%emt 0:00:06]} Nf6 {[%emt 0:00:58]} 5. O-O {[%emt 0:00:26]} b5 {[%emt 0:02:13]} 6. Bb3 {[%emt 0:00:04]} Bc5 {[%emt 0:01:22]} 7. c3 {[%emt 0:04:59]} d6 {[%emt 0:00:44]} 8. d4 {[%emt 0:02:46]} Bb6 {[%emt 0:03:41]} 9. h3 {[%emt 0:01:06]} O-O {[%emt 0:06:45]} 10. Re1 {[%emt 0:14:31]} h6 {[%emt 0:05:11]} 11. Be3 {[%emt 0:03:43]} exd4 {[%emt 0:04:51]} 12. cxd4 {[%emt 0:00:23]} Na5 {[%emt 0:04:00]} ({Don't blunder} 12... Nxe4 $2 13. Bd5 $18) 13. Bc2 $11 {[%emt 0:00:13]} Bb7 {[%emt 0:05:06]} 14. Nbd2 {[%emt 0:05:24]} Re8 {[%emt 0:09:04]} 15. Qb1 {[%emt 0:19:55]} d5 {[%emt 0:16:19]} 16. e5 {[%emt 0:03:38]} Nd7 {[%emt 0:00:07]} 17. b3 {[%emt 0:05:40]} Nf8 {[%emt 0:05:37]} 18. Nf1 {[%emt 0:00:52]} Ne6 {[%emt 0:05:17]} 19. Ng3 {[%emt 0:00:47]} Nc6 {[%emt 0:00:47]} 20. Qd1 {[%emt 0:02:26]} Nb4 {[%emt 0:06:00]} 21. Bb1 {[%emt 0:08:28]} c5 {[%emt 0:02:49]} 22. dxc5 {[%emt 0:04:13]} d4 {[%emt 0:04:37]} 23. Nxd4 {[%emt 0:02:11]} Bxc5 {[%emt 0:03:40]} 24. Ngf5 {[%emt 0:07:31]} Bxd4 {[%emt 0:01:21]} 25. Nxd4 {[%emt 0:04:33]} Nxd4 {[%emt 0:00:44]} 26. Qxd4 {[%emt 0:00:05]} Qxd4 {[%emt 0:00:36]} 27. Bxd4 {[%emt 0:00:03]} Rad8 {[%emt 0:00:32]} 28. Bb6 {[%emt 0:02:09]} Rc8 {[%emt 0:03:02]} 29. Be4 {[%emt 0:02:41]} Bxe4 {[%emt 0:02:28]} 30. Rxe4 {[%emt 0:00:04]} Nd3 {[%emt 0:00:40]} 31. Re3 {[%emt 0:02:52]} Nb4 {[%emt 0:02:07]} 32. Re4 {[%emt 0:01:34]} Nd3 {[%emt 0:00:25]} 33. Bd4 {[%emt 0:00:16]} Rc2 {[%emt 0:01:30]} 34. a4 {[%emt 0:00:47]} Nc1 {[%emt 0:01:09]} 35. axb5 {[%emt 0:01:24]} axb5 {[%emt 0:00:06]} 36. Ra7 {[%emt 0:01:13]} Ne2+ {[%emt 0:01:38]} 37. Kh2 {[%emt 0:00:03]} Nxd4 {[%emt 0:00:07]} 38. Rxd4 {[%emt 0:00:03]} Rxe5 {[%emt 0:01:15]} 39. Rd8+ {[%emt 0:00:14]} Kh7 {[%emt 0:00:04]} 40. Rxf7 {[%emt 0:00:04]} Ree2 {[%emt 0:00:45]} 41. Rdd7 {[%emt 0:31:06]} Rxf2 {[%emt 0:02:23]} 42. Rxg7+ {[%emt 0:00:00]} Kh8 {[%emt 0:00:09]} 43. Rg6 {[%emt 0:00:00]} Rb2 {[%emt 0:04:43]} 44. Rxh6+ {[%emt 0:00:00]} Kg8 {[%emt 0:00:05]} 45. Rg6+ {[%emt 0:00:00]} Kf8 {[%emt 0:00:10]} 46. Rg3 {[%emt 0:00:00]} Rf1 {[%emt 0:00:43]} 47. Rc3 {[%emt 0:00:00]} Ke8 {[%emt 0:00:17]} 48. Rb7 {[%emt 0:00:00]} 1-0

[Event "FIDE Womens World Cup 2021"]
[Site "Sochi"]
[Date "2021.07.12"]
[Round "1.12"]
[White "Gomez Barrera, Javiera Belen"]
[Black "Sukandar, Irine Kharisma"]
[Result "0-1"]
[ECO "C55"]
[WhiteElo "2083"]
[BlackElo "2413"]
[Annotator "NA"]
[PlyCount "66"]
[EventDate "2021.07.12"]
[EventType "k.o."]
[EventCountry "RUS"]
[SourceTitle "playchess.com"]
[Source "ChessBase"]
[SourceQuality "1"]
[TimeControl "40/5400+30:1800+30"]

1. e4 {[%emt 0:00:06]} e5 {[%emt 0:01:00]} 2. Nf3 {[%emt 0:00:11]} Nc6 {[%emt 0:00:24]} 3. Bc4 {[%emt 0:00:20]} Nf6 {[%emt 0:01:31]} 4. d3 {[%emt 0:00:20]} h6 {[%emt 0:01:41]} 5. c3 {[%emt 0:01:40]} d6 {[%emt 0:00:46]} 6. O-O {[%emt 0:04:28]} g5 {[%emt 0:02:24]} 7. Be3 {[%emt 0:06:15]} Bg7 {[%emt 0:05:58]} 8. Qc2 {[%emt 0:17:36]} Na5 {[%emt 0:06:37]} 9. Bb5+ {[%emt 0:02:46]} c6 {[%emt 0:00:14]} 10. Ba4 {[%emt 0:01:34]} b5 {[%emt 0:00:18]} 11. Bb3 {[%emt 0:01:21]} O-O {[%emt 0:00:49]} 12. c4 $15 {[%emt 0:13:57]} a6 {[%emt 0:05:45]} 13. Nc3 {[%emt 0:05:33]} Bg4 {[%emt 0:12:28]} 14. Nd2 {[%emt 0:06:38]} b4 {[%emt 0:02:54]} 15. Nd1 {[%emt 0:01:21]} c5 {[%emt 0:00:45]} 16. Ba4 {[%emt 0:01:24]} Nh5 {[%emt 0:03:42]} 17. f3 {[%emt 0:03:06]} Be6 {[%emt 0:01:11]} 18. g3 {[%emt 0:03:31]} Qc8 {[%emt 0:03:48]} 19. Bf2 {[%emt 0:06:19]} Bh3 {[%emt 0:03:37]} 20. Ne3 {[%emt 0:02:22]} Nf6 {[%emt 0:02:12]} 21. Rfe1 {[%emt 0:02:18]} Nb7 {[%emt 0:03:14]} 22. a3 {[%emt 0:03:47]} a5 {[%emt 0:02:45]} 23. Ndf1 {[%emt 0:02:50]} h5 {[%emt 0:04:04]} 24. Qd2 {[%emt 0:01:37]} Bh6 {[%emt 0:06:41]} 25. Qd1 {[%emt 0:07:52]} Nd8 {[%emt 0:01:34]} 26. Nd5 {[%emt 0:02:22]} Nxd5 {[%emt 0:00:14]} 27. cxd5 {[%emt 0:00:24]} f5 {[%emt 0:01:31]} 28. Ne3 {[%emt 0:00:25]} f4 {[%emt 0:03:00]} 29. Nc4 {[%emt 0:00:04]} Qc7 {[%emt 0:00:28]} 30. Rc1 {[%emt 0:01:47]} g4 {[%emt 0:02:36]} 31. gxf4 {[%emt 0:01:00]} Bxf4 {[%emt 0:00:11]} 32. Be3 {[%emt 0:00:27]} gxf3 {[%emt 0:00:20]} 33. Bxf4 {[%emt 0:00:35]} Qg7+ {[%emt 0:02:39]} 0-1

[Event "FIDE Womens World Cup 2021"]
[Site "Sochi"]
[Date "2021.07.12"]
[Round "1.13"]
[White "Skripchenko, Almira"]
[Black "Wafa, Shahenda"]
[Result "1/2-1/2"]
[ECO "B31"]
[WhiteElo "2411"]
[BlackElo "2106"]
[Annotator "NA"]
[PlyCount "154"]
[EventDate "2021.07.12"]
[EventType "k.o."]
[EventCountry "RUS"]
[SourceTitle "playchess.com"]
[Source "ChessBase"]
[SourceQuality "1"]
[TimeControl "40/5400+30:1800+30"]

1. e4 {[%emt 0:00:03]} c5 {[%emt 0:00:12]} 2. Nf3 {[%emt 0:00:13]} Nc6 {[%emt 0:00:16]} 3. Bb5 {[%emt 0:00:14]} g6 {[%emt 0:00:14]} 4. O-O {[%emt 0:00:40]} Bg7 {[%emt 0:00:17]} 5. Nc3 {[%emt 0:00:13]} e5 {[%emt 0:02:10]} 6. a3 {[%emt 0:00:38]} Nge7 {[%emt 0:03:57]} 7. b4 {[%emt 0:00:09]} cxb4 {[%emt 0:05:41]} 8. axb4 {[%emt 0:00:05]} O-O {[%emt 0:00:36]} 9. Bc4 {[%emt 0:05:02]} d6 {[%emt 0:13:22]} 10. b5 $11 {[%emt 0:11:58]} Nd4 {[%emt 0:00:56]} 11. Nxd4 {[%emt 0:00:42]} exd4 {[%emt 0:00:07]} 12. Nd5 {[%emt 0:00:15]} Nxd5 {[%emt 0:08:03]} 13. Bxd5 {[%emt 0:01:07]} Qb6 {[%emt 0:00:41]} 14. Ba3 {[%emt 0:09:08]} Be6 {[%emt 0:05:32]} 15. Bxe6 {[%emt 0:05:54]} fxe6 {[%emt 0:00:07]} 16. Qg4 {[%emt 0:00:05]} Rf6 {[%emt 0:06:21]} 17. Qg3 {[%emt 0:14:32]} e5 {[%emt 0:02:59]} 18. Qd3 {[%emt 0:05:41]} Qc7 {[%emt 0:17:38]} 19. c3 {[%emt 0:08:09]} dxc3 {[%emt 0:07:25]} 20. dxc3 {[%emt 0:02:08]} a5 {[%emt 0:08:34]} 21. Rab1 {[%emt 0:15:08]} Rc8 {[%emt 0:03:39]} 22. b6 {[%emt 0:01:21]} Qc4 {[%emt 0:04:36]} 23. Rfd1 {[%emt 0:02:14]} Bf8 {[%emt 0:00:31]} 24. f3 {[%emt 0:01:43]} Qxd3 {[%emt 0:03:51]} 25. Rxd3 {[%emt 0:00:06]} Rc6 {[%emt 0:00:18]} 26. Rd5 {[%emt 0:06:09]} Rxc3 {[%emt 0:00:34]} 27. Rxa5 {[%emt 0:00:04]} Rc6 {[%emt 0:01:11]} 28. Ra8 {[%emt 0:01:40]} Kg7 {[%emt 0:00:59]} 29. Rb8 {[%emt 0:02:27]} Rf7 {[%emt 0:00:07]} 30. Kf1 {[%emt 0:00:34]} Kf6 {[%emt 0:00:28]} 31. Bc1 {[%emt 0:00:22]} h6 {[%emt 0:01:06]} 32. Be3 {[%emt 0:00:13]} Ke6 {[%emt 0:01:02]} 33. Rd1 {[%emt 0:01:48]} g5 {[%emt 0:00:36]} 34. h3 {[%emt 0:00:10]} Rc3 {[%emt 0:00:17]} 35. Kf2 {[%emt 0:02:15]} Rc2+ {[%emt 0:00:49]} 36. Kg1 {[%emt 0:00:06]} Rc3 {[%emt 0:00:15]} 37. Bf2 {[%emt 0:00:05]} Rc6 {[%emt 0:00:43]} 38. Ra1 {[%emt 0:00:15]} d5 {[%emt 0:01:07]} 39. exd5+ {[%emt 0:01:13]} Kxd5 {[%emt 0:00:09]} 40. Ra5+ {[%emt 0:01:07]} Kc4 {[%emt 0:01:47]} 41. Rxe5 {[%emt 0:31:00]} Bd6 {[%emt 0:03:30]} 42. Re4+ {[%emt 0:00:00]} Kb5 {[%emt 0:03:50]} 43. Rbe8 {[%emt 0:00:00]} Rc1+ {[%emt 0:09:23]} 44. Re1 {[%emt 0:00:00]} Rxe1+ {[%emt 0:00:07]} 45. Rxe1 {[%emt 0:00:00]} Re7 {[%emt 0:02:23]} 46. Rb1+ {[%emt 0:00:00]} Kc6 {[%emt 0:00:16]} 47. Rc1+ {[%emt 0:00:00]} Kb5 {[%emt 0:00:15]} 48. Kf1 {[%emt 0:00:00]} Re5 {[%emt 0:02:04]} 49. g3 {[%emt 0:00:00]} Rf5 {[%emt 0:01:03]} 50. Kg2 {[%emt 0:00:00]} Rd5 {[%emt 0:04:22]} 51. Rc2 {[%emt 0:00:00]} Be5 {[%emt 0:05:27]} 52. Rc7 {[%emt 0:00:00]} Ka6 {[%emt 0:01:11]} 53. Rc5 {[%emt 0:01:00]} Rxc5 {[%emt 0:00:50]} 54. Bxc5 {[%emt 0:00:04]} h5 {[%emt 0:00:28]} 55. Be3 {[%emt 0:00:26]} Bf6 {[%emt 0:00:25]} 56. Kf2 {[%emt 0:02:43]} Kb5 {[%emt 0:00:11]} 57. Ke2 {[%emt 0:00:18]} Kc4 {[%emt 0:00:41]} 58. g4 {[%emt 0:03:00]} hxg4 {[%emt 0:00:25]} 59. hxg4 {[%emt 0:01:53]} Kd5 {[%emt 0:00:42]} 60. Kd3 {[%emt 0:00:18]} Bd8 {[%emt 0:00:25]} 61. Bd2 {[%emt 0:00:43]} Bf6 {[%emt 0:01:54]} 62. f4 {[%emt 0:01:45]} gxf4 {[%emt 0:00:05]} 63. Bxf4 {[%emt 0:00:03]} Bd8 {[%emt 0:00:21]} 64. Bc7 {[%emt 0:01:10]} Bg5 {[%emt 0:00:05]} 65. Bg3 {[%emt 0:01:07]} Bd8 {[%emt 0:00:18]} 66. Bf2 {[%emt 0:00:06]} Ke5 {[%emt 0:00:15]} 67. Bg3+ {[%emt 0:00:32]} Kd5 {[%emt 0:00:18]} 68. Bc7 {[%emt 0:00:20]} Bg5 {[%emt 0:00:05]} 69. Ke2 {[%emt 0:00:25]} Ke4 {[%emt 0:00:37]} 70. Kf2 {[%emt 0:00:10]} Be3+ {[%emt 0:01:20]} 71. Kg2 {[%emt 0:00:26]} Bg5 {[%emt 0:00:19]} 72. Kh3 {[%emt 0:00:50]} Kf3 {[%emt 0:00:38]} 73. Be5 {[%emt 0:01:26]} Bd8 {[%emt 0:00:20]} 74. Bd4 {[%emt 0:00:11]} Bg5 {[%emt 0:00:11]} 75. Bg7 {[%emt 0:01:00]} Bd8 {[%emt 0:00:18]} 76. Be5 {[%emt 0:00:45]} Bg5 {[%emt 0:02:00]} 77. Bg3 {[%emt 0:00:33]} Bd8 {[%emt 0:00:09]} 1/2-1/2